[Event "78th GEO-ch Women 1st League 2021"]
[Site "Tbilisi"]
[Date "2021.03.21"]
[Round "4.10"]
[White "Antia, Sopia"]
[Black "Mamardashvili, Ana"]
[Result "1/2-1/2"]
[ECO "C54"]
[WhiteElo "1594"]
[BlackElo "1416"]
[Annotator "NA RC"]
[PlyCount "112"]
[EventDate "2021.03.18"]
[EventType "swiss"]
[EventCountry "GEO"]
[SourceTitle "playchess.com"]
[Source "ChessBase"]
[SourceQuality "1"]
[TimeControl "5400+30"]

1. e4 {[%emt 0:00:00]} e5 {[%emt 0:00:00]} 2. Nf3 {[%emt 0:00:00]} Nc6 {[%emt 0:00:05]} 3. Bc4 {[%emt 0:00:00]} Bc5 {[%emt 0:01:11]} 4. c3 {[%emt 0:00:00]} Nf6 {[%emt 0:02:19]} 5. d4 {[%emt 0:00:00]} exd4 {[%emt 0:01:18]} 6. cxd4 {[%emt 0:00:00]} Bb4+ {[%emt 0:00:33]} 7. Nc3 {[%emt 0:00:05]} O-O {[%emt 0:01:56]} 8. Bg5 {[%emt 0:06:26]} h6 {[%emt 0:04:54]} 9. Bxf6 {[%emt 0:01:35]} Qxf6 {[%emt 0:00:08]} 10. O-O {[%emt 0:00:11]} Bxc3 {[%emt 0:03:06]} 11. bxc3 {[%emt 0:00:35]} d6 {[%emt 0:01:34]} 12. Qb1 {[%emt 0:06:32]} Rb8 {[%emt 0:09:43]} 13. a4 {[%emt 0:06:58]} Bg4 {[%emt 0:06:30]} 14. Nd2 {[%emt 0:00:31]} Qf4 {[%emt 0:02:34]} 15. Nb3 {[%emt 0:07:48]} Rfe8 {[%emt 0:08:06]} 16. Re1 {[%emt 0:00:27]} Kh8 {[%emt 0:09:32]} 17. f3 {[%emt 0:05:15]} Bh5 {[%emt 0:10:48]} 18. Qc1 {[%emt 0:01:22]} Qf6 {[%emt 0:00:48]} 19. Qd2 {[%emt 0:04:40]} Bg6 {[%emt 0:04:36]} 20. Bb5 {[%emt 0:00:43]} a6 {[%emt 0:02:20]} 21. Bxc6 {[%emt 0:00:41]} bxc6 {[%emt 0:00:03]} 22. Na5 {[%emt 0:00:28]} c5 {[%emt 0:04:26]} 23. d5 {[%emt 0:02:39]} Rb6 {[%emt 0:00:20]} 24. Rac1 {[%emt 0:03:37]} Reb8 {[%emt 0:03:57]} 25. Qe2 {[%emt 0:05:27]} Rb2 {[%emt 0:01:16]} 26. Rc2 {[%emt 0:01:31]} Rb1 {[%emt 0:00:49]} 27. Rec1 {[%emt 0:03:38]} R8b2 {[%emt 0:01:30]} 28. Qd1 {[%emt 0:00:40]} Rxc1 {[%emt 0:02:01]} 29. Qxc1 {[%emt 0:00:11]} Rxc2 {[%emt 0:01:11]} 30. Qxc2 {[%emt 0:00:09]} Qf4 {[%emt 0:00:50]} 31. Nc4 {[%emt 0:02:43]} f5 {[%emt 0:00:47]} 32. Qd2 {[%emt 0:00:27]} Qh4 {[%emt 0:02:04]} 33. g3 {[%emt 0:08:56]} Qe7 {[%emt 0:03:20]} 34. Qe2 {[%emt 0:03:08]} fxe4 {[%emt 0:01:24]} 35. Nd2 {[%emt 0:00:06]} Qe5 {[%emt 0:02:36]} 36. Qxa6 {[%emt 0:03:30]} e3 {[%emt 0:02:27]} 37. Ne4 {[%emt 0:05:07]} Qxd5 {[%emt 0:01:29]} 38. Qe2 {[%emt 0:02:31]} Bxe4 {[%emt 0:01:29]} 39. fxe4 {[%emt 0:00:05]} Qxe4 {[%emt 0:00:16]} 40. a5 {[%emt 0:00:36]} d5 {[%emt 0:02:21]} 41. a6 {[%emt 0:02:34]} d4 {[%emt 0:00:25]} 42. cxd4 {[%emt 0:00:34]} cxd4 {[%emt 0:00:05]} 43. Qg2 {[%emt 0:00:35]} Qb1+ {[%emt 0:00:46]} 44. Qf1 {[%emt 0:00:15]} Qb8 {[%emt 0:00:47]} 45. Qf3 {[%emt 0:03:13]} c5 {[%emt 0:02:15]} 46. Qf7 {[%emt 0:02:00]} d3 {[%emt 0:01:01]} 47. a7 {[%emt 0:00:18]} Qa8 {[%emt 0:00:44]} 48. Qc7 {[%emt 0:00:59]} d2 {[%emt 0:00:40]} 49. Qb8+ {[%emt 0:00:44]} Kh7 {[%emt 0:00:04]} 50. Qxa8 {[%emt 0:00:29]} d1=Q+ {[%emt 0:00:04]} 51. Kg2 {[%emt 0:00:21]} Qe2+ {[%emt 0:00:03]} 52. Kh3 {[%emt 0:00:10]} Qh5+ {[%emt 0:00:09]} 53. Kg2 {[%emt 0:00:10]} Qe2+ {[%emt 0:00:13]} 54. Kh3 {[%emt 0:00:15]} Qh5+ {[%emt 0:00:33]} 55. Kg2 {[%emt 0:00:07]} Qe2+ {[%emt 0:00:34]} 56. Kh3 {[%emt 0:00:07]} Qh5+ {[%emt 0:03:00]} 1/2-1/2

[Event "78th GEO-ch Women 1st League 2021"]
[Site "Tbilisi"]
[Date "2021.03.21"]
[Round "4.11"]
[White "Mgeladze, Kesaria"]
[Black "Mkrtchyan, Aida"]
[Result "1-0"]
[ECO "C12"]
[WhiteElo "1380"]
[BlackElo "1156"]
[Annotator "NA"]
[PlyCount "45"]
[EventDate "2021.03.18"]
[EventType "swiss"]
[EventCountry "GEO"]
[SourceTitle "playchess.com"]
[Source "ChessBase"]
[SourceQuality "1"]
[TimeControl "5400+30"]

1. e4 {[%emt 0:00:00]} e6 {[%emt 0:00:00]} 2. d4 {[%emt 0:00:44]} d5 {[%emt 0:00:00]} 3. Nc3 {[%emt 0:00:36]} Nf6 {[%emt 0:01:22]} 4. Bg5 {[%emt 0:01:11]} h6 {[%emt 0:05:43]} 5. Bxf6 {[%emt 0:01:37]} gxf6 {[%emt 0:01:00]} 6. exd5 {[%emt 0:01:44]} exd5 {[%emt 0:00:51]} 7. Qf3 {[%emt 0:02:14]} c6 {[%emt 0:04:26]} 8. O-O-O {[%emt 0:01:44]} Rg8 {[%emt 0:06:09]} 9. Re1+ {[%emt 0:01:31]} Be6 {[%emt 0:02:51]} 10. Bd3 {[%emt 0:01:35]} Nd7 {[%emt 0:06:43]} 11. Qh5 {[%emt 0:03:08]} Qe7 {[%emt 0:04:50]} 12. f4 {[%emt 0:03:57]} Rxg2 {[%emt 0:10:45]} 13. f5 {[%emt 0:00:31]} O-O-O {[%emt 0:03:11]} 14. fxe6 {[%emt 0:00:49]} fxe6 {[%emt 0:00:37]} 15. Qh3 {[%emt 0:00:52]} Qg7 {[%emt 0:02:01]} 16. Qxe6 {[%emt 0:00:53]} Qg5+ {[%emt 0:01:09]} 17. Kb1 {[%emt 0:00:13]} Bb4 {[%emt 0:03:12]} 18. Nge2 {[%emt 0:02:34]} Rg8 {[%emt 0:03:13]} 19. Bf5 {[%emt 0:01:04]} Rg7 {[%emt 0:01:13]} 20. h4 {[%emt 0:00:34]} Qd2 {[%emt 0:06:19]} 21. Rd1 {[%emt 0:01:15]} Qxd1+ {[%emt 0:09:21]} 22. Rxd1 {[%emt 0:00:27]} Re7 {[%emt 0:00:58]} 23. Qxf6 {[%emt 0:00:09]} 1-0

[Event "78th GEO-ch Women 1st League 2021"]
[Site "Tbilisi"]
[Date "2021.03.22"]
[Round "5.5"]
[White "Nikoladze, Sopio"]
[Black "Javakhishvili, Mariam"]
[Result "0-1"]
[ECO "E69"]
[WhiteElo "2132"]
[BlackElo "1671"]
[Annotator "RC"]
[PlyCount "64"]
[EventDate "2021.03.18"]
[EventType "swiss"]
[EventCountry "GEO"]
[SourceTitle "playchess.com"]
[Source "ChessBase"]
[SourceQuality "1"]
[TimeControl "5400+30"]

1. d4 {[%emt 0:00:00]} Nf6 {[%emt 0:03:13]} 2. Nf3 {[%emt 0:00:00]} g6 {[%emt 0:00:12]} 3. g3 {[%emt 0:00:01]} Bg7 {[%emt 0:00:07]} 4. Bg2 {[%emt 0:00:03]} O-O {[%emt 0:00:14]} 5. c4 {[%emt 0:00:08]} d6 {[%emt 0:00:07]} 6. Nc3 {[%emt 0:00:05]} Nbd7 {[%emt 0:00:23]} 7. O-O {[%emt 0:00:07]} e5 {[%emt 0:00:09]} 8. e4 {[%emt 0:02:03]} c6 {[%emt 0:00:09]} 9. h3 {[%emt 0:00:51]} Qb6 {[%emt 0:10:23]} 10. Re1 {[%emt 0:03:15]} exd4 {[%emt 0:03:59]} 11. Nxd4 {[%emt 0:00:19]} Ng4 {[%emt 0:00:22]} 12. hxg4 {[%emt 0:03:12]} Bxd4 {[%emt 0:00:10]} 13. Be3 {[%emt 0:01:42]} Bxe3 {[%emt 0:00:19]} 14. Rxe3 {[%emt 0:00:06]} Ne5 {[%emt 0:00:18]} 15. Na4 {[%emt 0:04:16]} Qc7 {[%emt 0:02:15]} 16. b3 {[%emt 0:00:54]} Bxg4 {[%emt 0:00:54]} 17. f3 {[%emt 0:00:07]} Be6 {[%emt 0:01:28]} 18. Qd4 {[%emt 0:03:15]} b6 {[%emt 0:31:31]} 19. Rd1 {[%emt 0:02:15]} Rad8 {[%emt 0:00:18]} 20. Nc3 {[%emt 0:01:03]} f6 {[%emt 0:11:25]} 21. Re2 {[%emt 0:00:45]} Bh3 {[%emt 0:00:52]} 22. Bh1 {[%emt 0:02:38]} Qg7 {[%emt 0:01:02]} 23. Qe3 {[%emt 0:01:11]} Rd7 {[%emt 0:00:53]} 24. Red2 {[%emt 0:01:40]} Rfd8 {[%emt 0:00:44]} 25. Ne2 {[%emt 0:01:16]} g5 {[%emt 0:00:29]} 26. Nd4 {[%emt 0:00:54]} c5 {[%emt 0:04:15]} 27. Nb5 {[%emt 0:02:11]} a6 {[%emt 0:01:15]} 28. Nxd6 {[%emt 0:01:11]} Qe7 {[%emt 0:00:17]} 29. Nb7 {[%emt 0:02:56]} Rxd2 {[%emt 0:00:56]} 30. Rxd2 {[%emt 0:03:10]} Rxd2 {[%emt 0:00:09]} 31. Qxd2 {[%emt 0:00:04]} Qxb7 {[%emt 0:00:10]} 32. f4 {[%emt 0:00:54]} Qd7 {[%emt 0:00:15]} 0-1

[Event "78th GEO-ch Women 1st League 2021"]
[Site "Tbilisi"]
[Date "2021.03.22"]
[Round "5.7"]
[White "Bedoshvili, Dea"]
[Black "Tsotsonava, Elene"]
[Result "0-1"]
[ECO "D05"]
[WhiteElo "1667"]
[BlackElo "1805"]
[Annotator "NA RC"]
[PlyCount "98"]
[EventDate "2021.03.18"]
[EventType "swiss"]
[EventCountry "GEO"]
[SourceTitle "playchess.com"]
[Source "ChessBase"]
[SourceQuality "1"]
[TimeControl "5400+30"]

1. d4 {[%emt 0:07:08]} d5 {[%emt 0:00:00]} 2. Nf3 {[%emt 0:00:09]} Nf6 {[%emt 0:00:00]} 3. Nbd2 {[%emt 0:00:11]} c5 {[%emt 0:00:00]} 4. e3 {[%emt 0:00:12]} e6 {[%emt 0:00:27]} 5. c3 {[%emt 0:00:13]} Nc6 {[%emt 0:00:30]} 6. Bd3 {[%emt 0:00:09]} Bd6 {[%emt 0:00:46]} 7. O-O {[%emt 0:00:29]} O-O {[%emt 0:00:12]} 8. dxc5 {[%emt 0:00:32]} Bxc5 {[%emt 0:00:09]} 9. e4 {[%emt 0:00:06]} b6 {[%emt 0:11:18]} 10. Qe2 {[%emt 0:07:33]} Bb7 {[%emt 0:01:40]} 11. e5 {[%emt 0:03:16]} Nd7 {[%emt 0:00:49]} 12. Nb3 {[%emt 0:00:08]} Be7 {[%emt 0:00:49]} 13. Nbd4 {[%emt 0:03:41]} Nc5 {[%emt 0:03:25]} 14. Bc2 {[%emt 0:36:24]} Ba6 {[%emt 0:14:26]} 15. Nxc6 {[%emt 0:07:11]} Bxe2 {[%emt 0:01:04]} 16. Nxd8 {[%emt 0:00:05]} Rfxd8 {[%emt 0:01:35]} 17. Re1 {[%emt 0:00:09]} Bxf3 {[%emt 0:06:55]} 18. gxf3 {[%emt 0:00:05]} Rac8 {[%emt 0:00:20]} 19. Be3 {[%emt 0:00:32]} b5 {[%emt 0:00:45]} 20. Rac1 {[%emt 0:02:10]} Rc6 {[%emt 0:01:57]} 21. Bd4 {[%emt 0:05:07]} Rdc8 {[%emt 0:02:34]} 22. Rcd1 {[%emt 0:03:16]} a5 {[%emt 0:01:22]} 23. f4 {[%emt 0:00:49]} g6 {[%emt 0:00:37]} 24. Kg2 {[%emt 0:01:47]} Na6 {[%emt 0:06:16]} 25. Bd3 {[%emt 0:02:40]} Rb8 {[%emt 0:01:29]} 26. Kf3 {[%emt 0:03:56]} a4 {[%emt 0:01:32]} 27. a3 {[%emt 0:01:07]} Bc5 {[%emt 0:02:34]} 28. Bb1 {[%emt 0:02:16]} Kf8 {[%emt 0:06:11]} 29. Ke3 {[%emt 0:04:07]} Bxd4+ {[%emt 0:07:33]} 30. Rxd4 {[%emt 0:00:04]} Nc5 {[%emt 0:00:08]} 31. Bc2 {[%emt 0:00:25]} Ke7 {[%emt 0:04:33]} 32. Kd2 {[%emt 0:01:04]} Nb7 {[%emt 0:02:13]} 33. Rb4 {[%emt 0:03:51]} Rc5 {[%emt 0:00:20]} 34. Kc1 {[%emt 0:01:44]} Na5 {[%emt 0:02:21]} 35. Rd4 {[%emt 0:00:51]} Rbc8 {[%emt 0:01:43]} 36. Kd2 {[%emt 0:02:09]} Nc6 {[%emt 0:02:43]} 37. Rd3 {[%emt 0:00:04]} Rc4 {[%emt 0:01:12]} 38. Rf3 {[%emt 0:01:18]} Nd4 {[%emt 0:00:55]} 39. Rd3 {[%emt 0:01:03]} Nxc2 {[%emt 0:04:02]} 40. Kxc2 {[%emt 0:00:03]} Rxf4 {[%emt 0:00:03]} 41. Re2 {[%emt 0:00:22]} Rcc4 {[%emt 0:00:17]} 42. f3 {[%emt 0:00:30]} Rf5 {[%emt 0:00:42]} 43. b3 {[%emt 0:00:36]} axb3+ {[%emt 0:00:20]} 44. Kxb3 {[%emt 0:02:28]} Kd7 {[%emt 0:00:19]} 45. Rde3 {[%emt 0:00:00]} Kc6 {[%emt 0:00:22]} 46. Rg2 {[%emt 0:00:00]} Rcf4 {[%emt 0:00:15]} 47. Rg3 {[%emt 0:00:00]} h5 {[%emt 0:00:16]} 48. Rh3 {[%emt 0:00:17]} h4 {[%emt 0:00:19]} 49. Kc2 {[%emt 0:00:15]} Kc5 {[%emt 0:00:23]} 0-1

[Event "78th GEO-ch Women 1st League 2021"]
[Site "Tbilisi"]
[Date "2021.03.22"]
[Round "5.8"]
[White "Sichinava, Mariam"]
[Black "Antia, Sopia"]
[Result "1-0"]
[ECO "A12"]
[WhiteElo "1516"]
[BlackElo "1594"]
[Annotator "NA RC"]
[PlyCount "105"]
[EventDate "2021.03.18"]
[EventType "swiss"]
[EventCountry "GEO"]
[SourceTitle "playchess.com"]
[Source "ChessBase"]
[SourceQuality "1"]
[TimeControl "5400+30"]

1. Nf3 {[%emt 0:00:00]} d5 {[%emt 0:00:00]} 2. g3 {[%emt 0:00:00]} c6 {[%emt 0:00:00]} 3. Bg2 {[%emt 0:00:00]} Bf5 {[%emt 0:00:00]} 4. O-O {[%emt 0:02:03]} e6 {[%emt 0:00:02]} 5. c4 {[%emt 0:03:13]} Nf6 {[%emt 0:00:15]} 6. b3 {[%emt 0:02:39]} h6 {[%emt 0:01:31]} 7. Bb2 {[%emt 0:02:39]} Nbd7 {[%emt 0:01:07]} 8. d3 {[%emt 0:04:18]} Be7 {[%emt 0:03:35]} 9. Re1 {[%emt 0:03:59]} O-O {[%emt 0:00:20]} 10. Nc3 {[%emt 0:00:07]} Nc5 {[%emt 0:09:19]} 11. Qc2 {[%emt 0:08:38]} Bh7 {[%emt 0:10:18]} 12. Rad1 {[%emt 0:02:19]} Qb6 {[%emt 0:09:32]} 13. e4 {[%emt 0:04:01]} dxe4 {[%emt 0:00:17]} 14. dxe4 {[%emt 0:00:13]} Rfd8 {[%emt 0:02:29]} 15. Ne5 {[%emt 0:03:11]} Bd6 {[%emt 0:06:35]} 16. Nd3 {[%emt 0:00:57]} Ng4 {[%emt 0:02:58]} 17. Nxc5 {[%emt 0:16:56]} Bxc5 {[%emt 0:01:06]} 18. Re2 {[%emt 0:00:22]} Rxd1+ {[%emt 0:08:18]} 19. Nxd1 {[%emt 0:00:49]} Rd8 {[%emt 0:01:07]} 20. Rd2 {[%emt 0:04:13]} Bd4 {[%emt 0:05:22]} 21. c5 {[%emt 0:07:21]} Bxc5 {[%emt 0:02:19]} 22. Rxd8+ {[%emt 0:00:06]} Qxd8 {[%emt 0:00:04]} 23. Bf3 {[%emt 0:00:06]} Qg5 {[%emt 0:07:39]} 24. h4 {[%emt 0:01:22]} Qh5 {[%emt 0:02:19]} 25. Qe2 {[%emt 0:04:30]} f5 {[%emt 0:00:33]} 26. Qc4 {[%emt 0:02:41]} Bb6 {[%emt 0:03:34]} 27. Qxe6+ {[%emt 0:07:00]} Qf7 {[%emt 0:00:09]} 28. Qd6 {[%emt 0:05:10]} Bc7 {[%emt 0:04:30]} 29. Qd2 {[%emt 0:00:01]} Ne5 {[%emt 0:01:27]} 30. Be2 {[%emt 0:00:08]} Kh8 {[%emt 0:01:53]} 31. f4 {[%emt 0:03:02]} Ng4 {[%emt 0:03:09]} 32. e5 {[%emt 0:00:09]} Qg6 {[%emt 0:04:06]} 33. Kg2 {[%emt 0:02:11]} Bg8 {[%emt 0:01:36]} 34. Bc4 {[%emt 0:04:28]} Bxc4 {[%emt 0:00:15]} 35. bxc4 {[%emt 0:00:02]} Qe6 {[%emt 0:00:42]} 36. Qd4 {[%emt 0:01:17]} Bb6 {[%emt 0:00:34]} 37. c5 {[%emt 0:00:06]} Bc7 {[%emt 0:00:50]} 38. Nc3 {[%emt 0:02:08]} Kh7 {[%emt 0:01:18]} 39. Qd3 {[%emt 0:01:28]} g5 {[%emt 0:01:04]} 40. Ne2 {[%emt 0:01:41]} Kg6 {[%emt 0:00:48]} 41. Nd4 {[%emt 0:00:41]} Qd5+ {[%emt 0:00:51]} 42. Kg1 {[%emt 0:00:08]} Qxc5 {[%emt 0:02:50]} 43. Qxf5+ {[%emt 0:00:08]} Kg7 {[%emt 0:01:06]} 44. Qxg4 {[%emt 0:00:18]} Bb6 {[%emt 0:00:45]} 45. Qd7+ {[%emt 0:00:41]} Kg8 {[%emt 0:00:34]} 46. Qe8+ {[%emt 0:00:35]} Kh7 {[%emt 0:00:40]} 47. Kh2 {[%emt 0:01:57]} Qd5 {[%emt 0:00:58]} 48. Qe7+ {[%emt 0:00:30]} Kh8 {[%emt 0:00:50]} 49. Qf6+ {[%emt 0:00:42]} Kh7 {[%emt 0:00:18]} 50. Qf5+ {[%emt 0:00:18]} Kh8 {[%emt 0:00:40]} 51. e6 {[%emt 0:03:58]} Qxa2 {[%emt 0:00:50]} 52. Qf6+ {[%emt 0:00:00]} Kh7 {[%emt 0:00:19]} 53. Nf5 {[%emt 0:00:00]} 1-0

[Event "78th GEO-ch Women 1st League 2021"]
[Site "Tbilisi"]
[Date "2021.03.22"]
[Round "5.9"]
[White "Dolakidze, Mariam"]
[Black "Mgeladze, Kesaria"]
[Result "0-1"]
[ECO "E67"]
[WhiteElo "1416"]
[BlackElo "1380"]
[Annotator "NA RC"]
[PlyCount "96"]
[EventDate "2021.03.18"]
[EventType "swiss"]
[EventCountry "GEO"]
[SourceTitle "playchess.com"]
[Source "ChessBase"]
[SourceQuality "1"]
[TimeControl "5400+30"]

1. Nf3 {[%emt 0:00:00]} Nf6 {[%emt 0:00:27]} 2. g3 {[%emt 0:00:00]} g6 {[%emt 0:01:33]} 3. Bg2 {[%emt 0:00:00]} Bg7 {[%emt 0:00:59]} 4. O-O {[%emt 0:00:05]} O-O {[%emt 0:00:43]} 5. c4 {[%emt 0:00:15]} d6 {[%emt 0:01:02]} 6. d4 {[%emt 0:00:08]} Nbd7 {[%emt 0:01:05]} 7. Nc3 {[%emt 0:00:22]} e5 {[%emt 0:01:35]} 8. dxe5 {[%emt 0:00:08]} dxe5 {[%emt 0:00:31]} 9. e3 {[%emt 0:00:37]} c6 {[%emt 0:02:10]} 10. b3 {[%emt 0:01:06]} Qc7 {[%emt 0:02:25]} 11. Bb2 {[%emt 0:00:07]} Rd8 {[%emt 0:01:40]} 12. Qe2 {[%emt 0:00:17]} Nc5 {[%emt 0:04:07]} 13. Rfd1 {[%emt 0:00:25]} Bf5 {[%emt 0:04:00]} 14. Ne1 {[%emt 0:06:48]} e4 {[%emt 0:04:02]} 15. h3 {[%emt 0:00:16]} h5 {[%emt 0:00:52]} 16. Nc2 {[%emt 0:01:05]} Nd3 {[%emt 0:07:27]} 17. Nd4 {[%emt 0:00:13]} Qc8 {[%emt 0:03:57]} 18. Nxf5 {[%emt 0:01:22]} Qxf5 {[%emt 0:00:30]} 19. Qc2 {[%emt 0:00:55]} Rd7 {[%emt 0:03:23]} 20. Rab1 {[%emt 0:02:30]} Rad8 {[%emt 0:02:00]} 21. Ba1 {[%emt 0:00:16]} Qe6 {[%emt 0:08:56]} 22. Kh2 {[%emt 0:00:29]} Rd6 {[%emt 0:06:54]} 23. Kg1 {[%emt 0:01:27]} h4 {[%emt 0:01:44]} 24. Ne2 {[%emt 0:01:42]} Qf5 {[%emt 0:02:40]} 25. Nf4 {[%emt 0:01:55]} hxg3 {[%emt 0:03:06]} 26. fxg3 {[%emt 0:00:41]} Bh6 {[%emt 0:02:59]} 27. Qe2 {[%emt 0:06:34]} Qd7 {[%emt 0:07:28]} 28. Qf1 {[%emt 0:04:08]} Bxf4 {[%emt 0:05:09]} 29. gxf4 {[%emt 0:00:13]} Qf5 {[%emt 0:01:37]} 30. Kh2 {[%emt 0:01:35]} Kg7 {[%emt 0:02:45]} 31. Qe2 {[%emt 0:01:52]} Rh8 {[%emt 0:02:31]} 32. Rh1 {[%emt 0:02:26]} Kg8 {[%emt 0:00:53]} 33. Bxf6 {[%emt 0:00:06]} Rxf6 {[%emt 0:00:07]} 34. Rbd1 {[%emt 0:00:18]} Kg7 {[%emt 0:01:45]} 35. Kg1 {[%emt 0:00:51]} Rd8 {[%emt 0:00:46]} 36. Kh2 {[%emt 0:02:00]} Rfd6 {[%emt 0:00:58]} 37. Rhf1 {[%emt 0:00:14]} Qd7 {[%emt 0:03:26]} 38. Qc2 {[%emt 0:03:24]} f5 {[%emt 0:01:58]} 39. a3 {[%emt 0:01:57]} Kf7 {[%emt 0:00:23]} 40. Qc3 {[%emt 0:02:22]} Nc5 {[%emt 0:00:49]} 41. Rxd6 {[%emt 0:02:12]} Qxd6 {[%emt 0:00:10]} 42. b4 {[%emt 0:03:20]} Ne6 {[%emt 0:00:20]} 43. h4 {[%emt 0:04:38]} Qd3 {[%emt 0:00:20]} 44. Rc1 {[%emt 0:00:19]} Qe2 {[%emt 0:00:42]} 45. Rc2 {[%emt 0:06:00]} Qg4 {[%emt 0:00:20]} 46. Bh3 {[%emt 0:00:48]} Qxh4 {[%emt 0:00:18]} 47. Rg2 {[%emt 0:00:19]} Rd3 {[%emt 0:00:17]} 48. Qc1 {[%emt 0:00:09]} Nxf4 {[%emt 0:00:11]} 0-1

[Event "78th GEO-ch Women 1st League 2021"]
[Site "Tbilisi"]
[Date "2021.03.22"]
[Round "5.10"]
[White "Tasoshvili, Tamar"]
[Black "Mamardashvili, Ana"]
[Result "1-0"]
[ECO "A16"]
[WhiteElo "1528"]
[BlackElo "1416"]
[Annotator "NA RC"]
[PlyCount "99"]
[EventDate "2021.03.18"]
[EventType "swiss"]
[EventCountry "GEO"]
[SourceTitle "playchess.com"]
[Source "ChessBase"]
[SourceQuality "1"]
[TimeControl "5400+30"]

1. c4 {[%emt 0:07:09]} Nf6 {[%emt 0:00:12]} 2. Nc3 {[%emt 0:00:11]} d5 {[%emt 0:00:53]} 3. cxd5 {[%emt 0:00:34]} Nxd5 {[%emt 0:00:06]} 4. Nxd5 {[%emt 0:00:14]} Qxd5 {[%emt 0:00:08]} 5. d4 {[%emt 0:00:26]} Nc6 {[%emt 0:04:00]} 6. e3 {[%emt 0:01:39]} Bf5 {[%emt 0:04:28]} 7. Bd2 {[%emt 0:01:12]} O-O-O {[%emt 0:03:38]} 8. Nf3 {[%emt 0:04:12]} h5 {[%emt 0:06:11]} 9. Qa4 {[%emt 0:04:38]} e5 {[%emt 0:07:11]} 10. Bc4 {[%emt 0:13:42]} Qd6 {[%emt 0:07:59]} 11. d5 {[%emt 0:01:35]} Nb4 {[%emt 0:10:15]} 12. O-O {[%emt 0:03:34]} Nxd5 {[%emt 0:09:48]} 13. Qxa7 {[%emt 0:02:10]} Nb6 {[%emt 0:02:16]} 14. Bxf7 {[%emt 0:01:33]} g5 {[%emt 0:05:02]} 15. Ba5 {[%emt 0:03:05]} Nd7 {[%emt 0:07:56]} 16. Rfd1 {[%emt 0:01:29]} Qa6 {[%emt 0:01:23]} 17. Qxa6 {[%emt 0:00:42]} bxa6 {[%emt 0:00:01]} 18. Nxg5 {[%emt 0:00:27]} Be7 {[%emt 0:03:04]} 19. Ne6 {[%emt 0:00:36]} Bxe6 {[%emt 0:00:02]} 20. Bxe6 {[%emt 0:00:01]} Rh6 {[%emt 0:00:22]} 21. Bxd7+ {[%emt 0:00:43]} Rxd7 {[%emt 0:00:04]} 22. Rxd7 {[%emt 0:00:16]} Kxd7 {[%emt 0:00:02]} 23. Bc3 {[%emt 0:00:54]} e4 {[%emt 0:00:40]} 24. Rd1+ {[%emt 0:00:24]} Ke6 {[%emt 0:01:03]} 25. Kf1 {[%emt 0:02:54]} Rg6 {[%emt 0:00:36]} 26. Ba5 {[%emt 0:02:06]} c5 {[%emt 0:00:55]} 27. g3 {[%emt 0:00:53]} Rg5 {[%emt 0:00:23]} 28. Bd8 {[%emt 0:01:03]} h4 {[%emt 0:01:07]} 29. Bxe7 {[%emt 0:00:29]} Kxe7 {[%emt 0:00:02]} 30. Ke2 {[%emt 0:00:18]} hxg3 {[%emt 0:00:11]} 31. hxg3 {[%emt 0:00:05]} a5 {[%emt 0:00:26]} 32. Rc1 {[%emt 0:01:12]} Kd6 {[%emt 0:01:24]} 33. Rc4 {[%emt 0:00:16]} Kd5 {[%emt 0:01:14]} 34. Ra4 {[%emt 0:00:08]} Rg6 {[%emt 0:00:17]} 35. Rxa5 {[%emt 0:01:02]} Rb6 {[%emt 0:00:08]} 36. b3 {[%emt 0:00:16]} Rb7 {[%emt 0:00:17]} 37. Ra8 {[%emt 0:01:57]} Rb6 {[%emt 0:00:33]} 38. Rd8+ {[%emt 0:00:12]} Ke5 {[%emt 0:00:17]} 39. Re8+ {[%emt 0:01:32]} Kd5 {[%emt 0:00:11]} 40. Rd8+ {[%emt 0:02:01]} Ke5 {[%emt 0:00:05]} 41. Rd2 {[%emt 0:00:05]} Rb7 {[%emt 0:00:53]} 42. Kd1 {[%emt 0:00:15]} Rc7 {[%emt 0:01:56]} 43. Kc2 {[%emt 0:00:48]} c4 {[%emt 0:00:35]} 44. bxc4 {[%emt 0:00:10]} Rxc4+ {[%emt 0:00:03]} 45. Kb3 {[%emt 0:00:08]} Rc7 {[%emt 0:00:23]} 46. a4 {[%emt 0:00:12]} Kf5 {[%emt 0:00:37]} 47. a5 {[%emt 0:01:26]} Kg4 {[%emt 0:00:10]} 48. Kb4 {[%emt 0:00:49]} Kf3 {[%emt 0:00:13]} 49. a6 {[%emt 0:00:17]} Rh7 {[%emt 0:00:13]} 50. Ra2 {[%emt 0:01:11]} 1-0

[Event "78th GEO-ch Women 1st League 2021"]
[Site "Tbilisi"]
[Date "2021.03.22"]
[Round "5.11"]
[White "Mkrtchyan, Aida"]
[Black "Sordia, Marta"]
[Result "0-1"]
[ECO "B22"]
[WhiteElo "1156"]
[BlackElo "1226"]
[Annotator "NA RC"]
[PlyCount "74"]
[EventDate "2021.03.18"]
[EventType "swiss"]
[EventCountry "GEO"]
[SourceTitle "playchess.com"]
[Source "ChessBase"]
[SourceQuality "1"]
[TimeControl "5400+30"]

1. e4 {[%emt 0:00:13]} c5 {[%emt 0:00:00]} 2. c3 {[%emt 0:00:57]} d5 {[%emt 0:00:41]} 3. exd5 {[%emt 0:00:55]} Qxd5 {[%emt 0:00:04]} 4. d4 {[%emt 0:01:40]} Nc6 {[%emt 0:00:03]} 5. Nf3 {[%emt 0:01:59]} Bf5 {[%emt 0:00:27]} 6. Bb5 {[%emt 0:02:21]} cxd4 {[%emt 0:01:58]} 7. Bxc6+ {[%emt 0:05:39]} Qxc6 {[%emt 0:00:11]} 8. cxd4 {[%emt 0:02:48]} Bxb1 {[%emt 0:00:23]} 9. Rxb1 {[%emt 0:00:45]} Nf6 {[%emt 0:01:11]} 10. Be3 {[%emt 0:10:31]} e6 {[%emt 0:02:20]} 11. O-O {[%emt 0:04:06]} Bd6 {[%emt 0:02:20]} 12. Rc1 {[%emt 0:02:18]} Qd5 {[%emt 0:01:14]} 13. Qa4+ {[%emt 0:01:37]} b5 {[%emt 0:00:35]} 14. Qa6 {[%emt 0:05:37]} O-O {[%emt 0:01:46]} 15. Rc6 {[%emt 0:12:42]} Rfd8 {[%emt 0:06:00]} 16. a4 {[%emt 0:06:55]} bxa4 {[%emt 0:03:32]} 17. Qxa4 {[%emt 0:01:45]} Rab8 {[%emt 0:03:18]} 18. Rfc1 {[%emt 0:05:12]} Rxb2 {[%emt 0:07:11]} 19. Qxa7 {[%emt 0:02:05]} Rb1 {[%emt 0:00:59]} 20. Ng5 {[%emt 0:04:18]} Rxc1+ {[%emt 0:03:15]} 21. Rxc1 {[%emt 0:00:56]} e5 {[%emt 0:01:08]} 22. dxe5 {[%emt 0:02:55]} Bxe5 {[%emt 0:00:10]} 23. f4 {[%emt 0:02:15]} Bb8 {[%emt 0:03:27]} 24. Qe7 {[%emt 0:02:30]} Re8 {[%emt 0:02:50]} 25. Qa3 {[%emt 0:01:41]} Bxf4 {[%emt 0:00:47]} 26. Bxf4 {[%emt 0:02:12]} Qd4+ {[%emt 0:00:08]} 27. Kh1 {[%emt 0:01:40]} Qxf4 {[%emt 0:00:20]} 28. Nf3 {[%emt 0:01:25]} h6 {[%emt 0:01:46]} 29. h3 {[%emt 0:01:03]} Ne4 {[%emt 0:03:01]} 30. Kg1 {[%emt 0:01:07]} Ng3 {[%emt 0:03:29]} 31. Rd1 {[%emt 0:01:25]} Ne2+ {[%emt 0:03:15]} 32. Kh1 {[%emt 0:00:55]} Ng3+ {[%emt 0:02:10]} 33. Kg1 {[%emt 0:00:34]} Re3 {[%emt 0:06:57]} 34. Qa8+ {[%emt 0:02:08]} Kh7 {[%emt 0:00:06]} 35. Qd5 {[%emt 0:02:05]} Ne2+ {[%emt 0:00:27]} 36. Kh1 {[%emt 0:00:36]} Nc3 {[%emt 0:00:20]} 37. Qd4 {[%emt 0:01:29]} Rxf3 {[%emt 0:06:43]} 0-1